bitfinex/quotes_ETHUSD_20260121
["timestamp","ask_amount","ask_price","bid_price","bid_amount"]
[1768985190718,11.8731623,2963.2,2962.4,14.17424474]
[1768985190922,11.8731623,2963.1,2962.4,14.17424474]
[1768985191297,11.8731623,2963.1,2962.6,12.4370367]
[1768985192127,11.8741623,2963.5,2962.9,4.93504371]
[1768985192293,11.8741623,2963.5,2963.0,0.84668287]
[1768985192824,11.8741623,2963.5,2963.0,13.28371957]
[1768985193539,11.8731623,2963.7,2963.3,12.4370367]
[1768985193821,11.8731623,2963.7,2963.0,4.22163317]
[1768985193822,11.8731623,2963.5,2963.0,0.84668287]
[1768985194122,11.8731623,2963.5,2963.1,0.49370437]
[1768985194489,11.8731623,2963.9,2963.1,0.49370437]
[1768985194893,11.8731623,2963.9,2963.1,12.93074107]
[1768985198224,11.8731623,2963.9,2963.1,0.49370437]
[1768985198430,11.8731623,2963.7,2962.8,12.9950367]
[1768985198618,11.8731623,2963.5,2962.8,12.4370367]
[1768985198803,11.8731623,2963.5,2962.5,12.4370367]
[1768985199006,11.8731623,2963.3,2962.5,12.4370367]
[1768985199213,11.8731623,2963.3,2962.3,12.9950367]
[1768985199214,11.8731623,2963.1,2962.3,12.9950367]
[1768985199437,11.8731623,2962.9,2962.1,12.4370367]
[1768985199598,11.8731623,2962.9,2961.6,4.92719641]
[1768985199599,11.8731623,2962.9,2961.9,12.4370367]
[1768985199799,11.8731623,2962.7,2961.7,12.4370367]
[1768985202430,11.8731623,2962.7,2961.7,15.81346558]
[1768985202631,13.06047853,2962.7,2961.9,0.002]
[1768985203430,13.06047853,2962.7,2961.9,12.4390367]
[1768985204521,11.8731623,2963.2,2962.0,12.4370367]
[1768985204723,11.8731623,2963.0,2962.0,12.4370367]
[1768985204908,11.91535069,2962.9,2962.0,12.4370367]
[1768985205237,11.8731623,2962.9,2962.0,12.4370367]
[1768985205543,11.8731623,2962.9,2962.2,11.82988501]
[1768985206616,11.8731623,2962.9,2962.1,2.07424117]
[1768985206805,11.8731623,2962.9,2961.9,0.002]
[1768985207013,12.83660759,2962.6,2961.9,0.002]
[1768985209310,12.83660759,2962.6,2961.9,11.83188501]
[1768985209630,12.83660759,2963.1,2962.3,11.82988501]
[1768985209828,12.83660759,2963.1,2962.3,13.50559315]
[1768985210522,12.83660759,2963.6,2962.6,11.82988501]
[1768985210712,12.83660759,2963.4,2962.6,11.82988501]
[1768985214756,12.83660759,2963.4,2962.7,11.82988501]
[1768985214959,12.83660759,2963.2,2962.8,0.002]
[1768985220649,12.83660759,2963.2,2962.5,11.83188501]
[1768985220650,12.83660759,2963.0,2962.5,0.002]
[1768985220971,1.28366076,2963.2,2961.6,0.002]
[1768985220972,12.83660759,2962.8,2961.6,0.002]
[1768985221445,12.63427819,2962.6,2961.6,0.002]
[1768985221636,12.63427819,2962.2,2961.4,0.002]
[1768985221839,12.63427819,2962.0,2961.4,0.002]
[1768985222733,12.63427819,2962.3,2961.4,12.54729679]
[1768985223735,12.63427819,2962.9,2961.4,12.54729679]
[1768985223943,12.63427819,2962.7,2961.4,12.54729679]
[1768985224165,12.63427819,2962.7,2961.4,0.002]
[1768985224366,12.63427819,2962.5,2961.4,0.002]
[1768985225869,12.63427819,2962.5,2961.4,12.54729679]
[1768985226363,12.63427819,2962.5,2961.5,3.37666722]
[1768985226571,12.63427819,2962.5,2961.6,12.54529679]
[1768985227958,12.63427819,2962.5,2961.7,3.3764392]
[1768985228152,12.63427819,2962.5,2961.7,16.59724663]
[1768985228356,12.63427819,2962.5,2961.8,12.54529679]
[1768985233381,12.63427819,2962.5,2961.9,12.54529679]
[1768985234382,12.63427819,2962.5,2961.7,16.59719356]
[1768985237890,12.63427819,2962.5,2961.8,12.69799702]
[1768985238076,12.63427819,2962.5,2961.8,14.71083032]
[1768985238267,12.52949416,2962.7,2961.8,14.71083032]
[1768985240102,12.52949416,2962.7,2961.9,16.07420823]
[1768985240403,12.53049416,2962.3,2961.9,16.07420823]
[1768985240977,12.53049416,2962.3,2961.9,12.69799702]
[1768985241183,12.53049416,2962.3,2962.0,1.9705706]
[1768985242304,12.52949416,2963.6,2962.2,12.69799702]
[1768985242491,12.52949416,2963.4,2962.2,12.69799702]
[1768985242802,12.52949416,2963.2,2962.4,12.69799702]
[1768985244001,12.52949416,2963.4,2962.4,12.69799702]
[1768985244384,12.52949416,2963.4,2962.5,12.69799702]
[1768985245512,12.52949416,2963.4,2962.3,14.64299337]
[1768985245718,12.52949416,2963.2,2962.3,12.69799702]
[1768985245936,12.52949416,2963.0,2962.3,12.69799702]
[1768985246709,12.52949416,2963.0,2962.4,12.69799702]
[1768985247523,12.52949416,2963.6,2962.4,12.69799702]
[1768985247806,12.52949416,2963.4,2962.4,12.69799702]
[1768985248116,12.52949416,2963.4,2962.6,12.69799702]
[1768985248321,12.52949416,2963.2,2962.1,12.69799702]
[1768985248481,12.52949416,2963.0,2962.1,16.07390425]
[1768985248682,12.52949416,2962.8,2962.1,16.07390425]
[1768985248881,12.52949416,2962.8,2962.2,1.60739042]
[1768985251117,12.52949416,2963.6,2962.3,12.69799702]
[1768985251421,12.52949416,2963.4,2962.3,12.69799702]
[1768985251598,12.52949416,2963.2,2962.3,12.69799702]
[1768985252787,0.001,2962.6,2962.3,12.69799702]
[1768985253118,0.001,2962.6,2962.4,1.76832206]
[1768985253289,0.001,2962.6,2962.4,14.46631908]
[1768985253698,12.52949416,2963.2,2962.5,12.69799702]
[1768985253885,12.52949416,2963.4,2962.5,12.69799702]
[1768985254089,12.52949416,2963.4,2962.7,12.69799702]
[1768985260201,12.52949416,2963.2,2962.4,12.69799702]
[1768985260528,0.001,2963.7,2962.4,12.69799702]
[1768985260729,12.52949416,2963.6,2962.6,12.69799702]
[1768985260933,12.52949416,2963.4,2962.3,16.07372796]
[1768985261132,12.52949416,2963.2,2962.4,12.69799702]
[1768985263624,12.52949416,2963.2,2962.3,3.37575385]
[1768985263824,12.52949416,2963.0,2962.2,12.69999702]
[1768985265235,12.52949416,2963.0,2962.2,16.07586155]
[1768985265438,12.52949416,2963.0,2962.3,12.61840575]
[1768985265941,12.52949416,2963.0,2962.4,0.002]
[1768985266838,12.69508585,2962.8,2962.4,0.002]
[1768985267665,13.96459444,2962.8,2962.2,0.002]
[1768985267951,13.96459444,2962.8,2962.1,0.002]
[1768985268249,13.96459444,2962.8,2961.7,12.61840575]
[1768985268945,13.96459444,2962.8,2961.8,12.61840575]
[1768985269144,13.96459444,2962.8,2961.9,12.61840575]
[1768985274370,12.69508585,2962.6,2961.9,12.61840575]
[1768985279357,12.69508585,2962.2,2961.6,0.002]
[1768985279879,12.69508585,2962.2,2961.6,12.62040575]
[1768985286370,12.69508585,2962.2,2961.6,0.002]
[1768985287107,12.92404738,2962.0,2961.6,0.002]
[1768985289203,12.92404738,2961.9,2961.4,0.002]
[1768985289507,14.21645212,2961.9,2961.4,0.002]
[1768985289998,12.92404738,2961.6,2960.9,0.002]
[1768985290880,12.92404738,2961.6,2960.9,12.89326073]
[1768985291203,12.92404738,2962.5,2961.4,12.89126073]
[1768985291385,0.001,2962.0,2961.4,12.89126073]
[1768985291581,0.001,2962.0,2961.6,12.89126073]
[1768985293006,12.92404738,2962.5,2961.7,12.89126073]
[1768985293220,12.92404738,2962.3,2961.5,0.002]
[1768985293426,12.92404738,2962.1,2961.5,0.002]
[1768985293780,12.92404738,2962.5,2961.7,12.89126073]
[1768985295077,12.96624289,2962.4,2961.7,12.89126073]
[1768985295376,11.90605939,2962.6,2961.8,12.32516658]
[1768985296489,0.001,2962.6,2961.9,12.32516658]
[1768985296707,0.001,2962.6,2962.0,13.89531288]
[1768985299276,11.90605939,2962.6,2962.0,13.89531288]
[1768985300519,11.90605939,2962.6,2961.9,12.32516658]
[1768985300693,11.90505939,2962.4,2961.9,12.32516658]
[1768985301521,0.001,2962.6,2961.9,12.32516658]
[1768985301726,0.001,2962.6,2962.0,12.32516658]
[1768985301892,0.001,2962.6,2962.1,12.32516658]
[1768985302095,0.001,2962.6,2962.3,12.32516658]
[1768985302627,0.001,2962.6,2962.2,14.05078745]
[1768985303533,11.90605939,2962.6,2962.2,1.72562087]
[1768985304303,0.001,2962.4,2962.2,1.72562087]
[1768985305007,0.001,2962.4,2961.8,3.37826841]
[1768985305008,11.90605939,2962.4,2961.9,12.32516658]
[1768985305398,0.001,2962.4,2961.9,12.32516658]
[1768985311838,0.001,2962.4,2962.0,12.32516658]
[1768985312941,11.90505939,2962.3,2961.8,0.002]
[1768985313143,0.001,2962.4,2962.0,12.32516658]
[1768985313144,11.90605939,2962.4,2962.0,12.32516658]
[1768985313314,0.001,2962.4,2962.0,12.32516658]
[1768985314348,11.90505939,2962.9,2962.2,12.32516658]
[1768985316136,0.001,2962.4,2962.2,12.32516658]
[1768985320838,0.001,2962.4,2962.0,14.38861454]
[1768985323344,11.90605939,2962.4,2962.0,14.38861454]
[1768985324547,0.001,2963.2,2962.0,14.38861454]
[1768985324548,11.90605939,2963.2,2962.2,12.32516658]
[1768985324867,11.90605939,2963.2,2962.3,12.32516658]
[1768985324868,11.90505939,2963.0,2962.3,12.32516658]
[1768985325446,12.06756896,2963.1,2962.3,12.32516658]
[1768985326356,0.001,2963.2,2962.3,12.32516658]
[1768985326555,12.06756896,2963.1,2962.5,12.29097984]
[1768985329224,12.06756896,2963.1,2962.4,2.40073662]
[1768985332066,12.06756896,2963.1,2962.4,14.69171646]
[1768985339266,12.06856896,2962.9,2962.4,14.69171646]
[1768985339730,0.001,2962.9,2962.4,14.69171646]
[1768985339935,12.06856896,2962.9,2962.5,0.81931647]
[1768985341470,12.06856896,2962.9,2962.5,13.73117828]
[1768985343179,12.06856896,2962.9,2962.5,0.81931647]
[1768985343387,12.06856896,2962.9,2962.2,12.91386181]
[1768985343555,13.00313296,2962.8,2962.2,0.002]
[1768985343756,12.96094314,2962.8,2962.2,0.002]
[1768985347555,12.96094314,2962.8,2962.2,12.91386181]
[1768985347850,12.96094314,2962.8,2962.2,14.54305601]
[1768985348653,12.96094314,2962.8,2962.2,0.002]
[1768985351568,12.96094314,2962.6,2962.2,0.002]
[1768985351966,12.96094314,2962.6,2962.4,0.002]
[1768985352195,12.96194314,2962.6,2962.4,0.002]
[1768985355399,12.96194314,2962.6,2962.2,0.002]
[1768985355572,12.96772514,2962.4,2962.2,0.002]
[1768985359677,12.96772514,2962.5,2962.2,0.002]
[1768985363313,12.91072514,2962.5,2962.2,0.002]
[1768985363513,0.001,2962.6,2962.2,12.12273788]
[1768985364809,12.96872514,2962.6,2962.2,0.002]
[1768985365007,13.00991923,2962.5,2962.2,0.002]
[1768985365340,12.96772514,2962.5,2962.4,0.002]
[1768985366119,12.96772514,2962.5,2962.2,0.002]
[1768985366415,13.00992065,2962.4,2962.1,0.002]
[1768985366579,12.96772514,2962.4,2962.1,0.002]
[1768985366783,14.88733187,2962.4,2962.1,0.002]
[1768985370530,12.96772514,2962.4,2962.1,0.002]
[1768985377758,0.001,2962.6,2962.1,12.12273788]
[1768985377965,12.96772514,2962.5,2962.1,12.12273788]
[1768985378163,0.001,2962.6,2962.1,12.12273788]
[1768985378858,0.001,2962.6,2962.2,12.12073788]
[1768985379064,0.001,2962.6,2962.2,13.67080334]
[1768985379357,0.001,2962.6,2962.4,12.12073788]
[1768985381749,0.001,2962.9,2962.4,12.12073788]
[1768985382432,12.96872514,2962.9,2962.4,12.12073788]
[1768985382633,0.001,2962.9,2962.4,12.12073788]
[1768985382869,0.001,2962.9,2962.4,13.48801821]
[1768985383967,12.96872514,2962.9,2962.4,13.48801821]
[1768985384689,12.96872514,2962.9,2962.4,12.12073788]
[1768985384863,12.96872514,2962.9,2962.3,12.12273788]
[1768985385559,12.80305551,2962.8,2962.3,12.12273788]
[1768985385757,12.76086569,2962.8,2962.3,12.12273788]
[1768985386081,12.76086569,2962.8,2962.3,0.002]
[1768985386594,12.76086569,2962.8,2962.3,11.7563536]
[1768985389190,0.001,2962.9,2962.3,11.7563536]
[1768985389597,12.76186569,2962.9,2962.3,11.7563536]
[1768985390800,0.001,2962.6,2962.3,11.7563536]
[1768985390995,12.74786569,2962.9,2962.3,1.51543224]
[1768985391293,12.74786569,2962.9,2962.4,11.7543536]
[1768985391497,12.76086569,2963.1,2962.4,11.7543536]
[1768985392688,0.001,2963.2,2962.4,11.7543536]
[1768985392891,12.76186569,2963.2,2962.4,11.7543536]
[1768985393114,0.04218554,2963.1,2962.4,13.26756141]
[1768985393316,12.80305123,2963.1,2962.4,13.26756141]
[1768985393611,12.76086569,2963.1,2962.4,13.26756141]
[1768985393911,12.80305266,2963.0,2962.4,13.26756141]
[1768985394074,12.76086569,2963.0,2962.4,11.7543536]
[1768985394823,12.76086569,2963.0,2962.4,11.74821912]
[1768985400009,12.80305408,2962.9,2962.4,11.74821912]
[1768985400179,12.76086569,2962.9,2962.4,11.74821912]
[1768985400510,0.04218982,2962.8,2962.4,11.74821912]
[1768985401027,0.04218982,2962.8,2962.3,0.002]
[1768985401028,12.76086569,2962.7,2962.3,0.002]
[1768985401311,12.19667681,2962.5,2962.3,0.002]
[1768985402613,12.19667681,2963.0,2962.3,0.002]
[1768985402779,12.2398652,2962.9,2962.3,0.002]
[1768985402980,12.19767681,2962.9,2962.4,0.002]
[1768985403182,12.19667681,2962.7,2962.4,0.002]
[1768985403419,13.46275613,2962.6,2962.4,0.002]
[1768985403616,13.42056347,2962.6,2962.4,0.002]
[1768985405018,0.001,2962.9,2962.4,11.95863453]
[1768985405400,12.19767681,2962.9,2962.4,11.95863453]
[1768985406226,12.19767681,2962.9,2962.4,0.002]
[1768985408931,12.19667681,2962.7,2962.4,0.002]
[1768985412043,12.19667681,2962.5,2962.4,0.002]
[1768985412424,13.41634449,2962.5,2962.1,0.002]
[1768985412610,12.19667681,2962.3,2962.1,0.002]
[1768985414667,13.41634449,2962.5,2962.1,11.95863453]
[1768985414836,12.19767681,2962.7,2962.1,11.95863453]
[1768985415031,12.23886947,2962.6,2962.1,11.95863453]
[1768985415236,12.19667681,2962.6,2962.1,11.95863453]
[1768985417342,0.001,2962.7,2962.1,11.95863453]
[1768985419268,12.42733979,2962.7,2962.1,11.95863453]
[1768985419476,0.001,2962.7,2962.1,11.95863453]
[1768985420162,0.001,2962.9,2962.5,12.24923262]
[1768985423473,12.46952818,2962.9,2962.5,12.24923262]
[1768985423771,12.42733979,2962.9,2962.5,12.24923262]
[1768985425747,12.42733979,2962.9,2962.2,12.24923262]
[1768985426089,12.46852961,2962.8,2962.2,12.24923262]
[1768985426262,12.42633979,2962.8,2962.2,13.62792347]
[1768985427282,12.42633979,2962.8,2962.7,0.002]
[1768985429171,12.42633979,2962.8,2962.5,0.002]
[1768985429991,12.42733979,2962.9,2962.5,12.25123262]
[1768985431099,12.42733979,2962.9,2962.5,0.002]
[1768985431270,13.67007377,2962.9,2962.5,0.002]
[1768985436068,12.42633979,2962.7,2962.5,0.002]
[1768985436572,1.24373398,2962.9,2962.5,0.002]
[1768985436573,12.46853245,2962.6,2962.5,0.002]
[1768985436900,12.42633979,2962.6,2962.5,0.002]
[1768985437979,12.42633979,2962.6,2962.1,0.002]
[1768985438185,12.42633979,2962.4,2962.1,0.002]
[1768985443606,12.42633979,2962.6,2962.1,12.25123262]
[1768985444182,0.001,2962.9,2962.1,12.25123262]
[1768985444399,0.001,2962.9,2962.2,12.24923262]
[1768985445323,12.10467262,2962.9,2962.2,12.24923262]
[1768985445829,0.04218982,2962.8,2962.2,12.24923262]
[1768985446025,0.04218982,2962.8,2962.2,13.47455588]
[1768985446423,12.10367262,2962.8,2962.2,13.47455588]
[1768985446593,0.001,2962.9,2962.3,12.61463234]
[1768985450021,12.10467262,2962.9,2962.3,12.61463234]
[1768985450224,12.14586244,2962.8,2962.3,12.61463234]
[1768985450428,12.14586386,2962.7,2962.1,0.002]
[1768985450628,12.10367262,2962.5,2962.1,0.002]
[1768985451112,0.04219551,2962.4,2962.1,0.002]
[1768985451309,12.10367262,2962.3,2962.1,0.002]
[1768985462637,12.32400555,2962.6,2962.1,11.8013833]
[1768985463536,12.32400555,2962.6,2962.3,0.002]
[1768985463742,1.23250056,2962.5,2962.3,0.002]
[1768985465235,12.32500555,2962.7,2962.3,11.8013833]
[1768985466843,0.001,2962.7,2962.3,11.8013833]
[1768985475154,0.001,2962.7,2962.5,0.002]
[1768985475345,12.78908575,2962.4,2962.3,0.002]
[1768985475650,14.06809433,2962.4,2962.3,0.002]
[1768985476257,12.78908575,2962.4,2962.3,0.002]
[1768985477456,12.79008575,2962.5,2962.3,0.002]
[1768985481156,0.001,2962.5,2962.3,11.82718239]
[1768985483859,0.001,2962.7,2962.3,11.82718239]
[1768985484159,0.001,2962.9,2962.4,11.82518239]
[1768985484360,0.001,2963.2,2962.6,11.82518239]
[1768985486044,12.79008575,2963.2,2962.6,11.82518239]
[1768985487265,0.001,2963.2,2962.6,15.20056828]
[1768985487439,0.001,2963.2,2962.7,11.82518239]
[1768985487639,0.001,2963.2,2962.8,13.00770063]
[1768985488366,0.001,2963.0,2962.8,13.00770063]
[1768985489273,0.001,2963.2,2962.8,1.18251824]
[1768985489486,0.001,2963.2,2962.9,11.82518239]
[1768985494688,12.79008575,2963.2,2962.6,11.82518239]
[1768985499677,12.79008575,2963.2,2962.8,11.82718239]
[1768985500013,0.001,2963.0,2962.8,0.002]
[1768985500626,0.001,2963.0,2962.8,11.82718239]
[1768985500926,0.001,2963.0,2962.8,13.00990063]
[1768985503219,0.0004,2963.2,2962.8,13.00990063]
[1768985503421,0.0004,2963.2,2962.8,11.82718239]
[1768985504819,0.0004,2963.2,2962.9,11.82518239]
[1768985505938,12.69326118,2963.7,2963.0,12.561229]
[1768985506100,0.001,2963.7,2963.2,12.561229]
[1768985506432,0.001,2963.7,2963.2,14.31025437]
[1768985506735,12.69326118,2963.7,2963.2,14.31025437]
[1768985506902,0.001,2963.7,2963.2,14.31025437]
[1768985507200,12.69326118,2963.7,2963.2,14.31025437]
[1768985510830,0.001,2963.7,2963.2,14.31025437]
[1768985511034,0.001,2963.7,2963.4,12.561229]
[1768985511237,0.001,2963.7,2963.3,14.32973822]
[1768985511403,12.69326118,2963.7,2963.3,14.32973822]
[1768985511604,0.001,2963.7,2963.3,14.32973822]
[1768985511805,0.001,2964.0,2963.5,12.561229]
[1768985512035,0.001,2964.0,2963.6,13.8173519]
[1768985512915,12.69326118,2964.0,2963.6,1.2561229]
[1768985513230,12.69226118,2963.8,2963.4,12.561229]
[1768985513834,12.69226118,2963.9,2963.4,12.561229]
[1768985514726,12.69226118,2963.9,2963.5,12.561229]
[1768985514926,0.001,2964.0,2963.5,12.561229]
[1768985515127,12.69326118,2964.0,2963.5,12.561229]
[1768985515323,12.69326118,2964.0,2963.6,1.59357291]
[1768985515735,0.001,2964.0,2963.6,14.15480191]
[1768985517247,0.001,2964.0,2963.7,12.561229]
[1768985518723,12.69326118,2964.0,2963.6,1.59357291]
[1768985518915,12.69326118,2964.0,2963.3,14.88773822]
[1768985519930,12.69326118,2964.0,2963.4,12.561229]
[1768985523257,12.69326118,2964.0,2963.5,0.002]
[1768985523258,11.86401991,2963.8,2963.5,0.002]
[1768985523458,13.05473932,2963.8,2963.5,0.002]
[1768985523759,13.05573932,2963.8,2962.9,12.20855362]
[1768985524064,13.05573932,2963.8,2963.3,0.002]
[1768985528838,11.86401991,2963.7,2962.8,0.002]
[1768985529031,11.86401991,2963.5,2962.8,0.002]
[1768985530043,11.86401991,2963.5,2962.8,12.21055362]
[1768985534974,1.7984764,2963.6,2962.9,12.20855362]
[1768985535164,11.86401991,2963.7,2962.9,12.20855362]
[1768985535773,11.86401991,2963.7,2963.1,12.40837343]
[1768985535972,0.001,2963.6,2963.1,12.40837343]
[1768985536168,12.06131358,2963.6,2963.1,12.40837343]
[1768985536369,12.06031358,2963.4,2963.0,0.002]
[1768985540383,12.06031358,2963.4,2963.0,12.41037343]
[1768985541290,12.06031358,2963.5,2963.0,12.41037343]
[1768985546088,0.04218127,2963.4,2963.0,12.41037343]
[1768985546401,12.06031358,2963.4,2963.0,12.41037343]
[1768985547290,12.06031358,2963.4,2963.0,0.002]
[1768985548401,12.06031358,2963.4,2963.2,0.002]
[1768985548576,0.001,2963.3,2963.2,0.002]
[1768985551101,0.001,2963.6,2963.2,12.41037343]
[1768985551706,0.001,2963.6,2963.2,13.65161077]
[1768985552004,12.06031358,2964.0,2963.3,12.40837343]
[1768985552187,12.06111358,2964.2,2963.3,12.40837343]
[1768985553301,12.06111358,2964.2,2963.4,12.40837343]
[1768985553493,0.0008,2964.2,2963.5,12.40837343]
[1768985553694,0.0008,2964.2,2963.7,12.40837343]
[1768985554399,12.06111358,2964.2,2963.7,12.40837343]
[1768985555918,12.06111358,2964.2,2963.6,14.14211324]
[1768985556079,12.06111358,2964.2,2963.6,12.40837343]
[1768985557114,12.06031358,2964.0,2963.3,12.40837343]
[1768985557429,12.06031358,2964.0,2963.2,0.002]
[1768985557430,12.06031358,2963.8,2963.2,0.002]
[1768985557583,12.10249058,2963.7,2963.0,0.002]
[1768985557785,13.26634494,2963.7,2963.0,0.002]
[1768985558811,12.06031358,2964.0,2963.0,12.41037343]
[1768985559024,12.06031358,2964.0,2963.1,12.40837343]
[1768985560227,12.06031358,2963.8,2963.1,12.40837343]
[1768985562513,0.001,2964.0,2963.0,0.002]
[1768985562514,12.06031358,2963.6,2963.0,0.002]
[1768985565021,12.06031358,2963.6,2963.0,12.41037343]
[1768985565320,12.06031358,2963.6,2963.0,13.65161077]
[1768985571640,0.04217985,2963.5,2963.0,13.65161077]
[1768985571815,12.78757618,2963.5,2963.0,13.65161077]
[1768985572141,12.78757618,2963.5,2963.0,12.41037343]
[1768985572846,12.78757618,2963.5,2963.2,0.002]
[1768985577049,12.78757618,2963.9,2963.2,0.002]
[1768985577218,12.78757618,2963.7,2963.2,12.43533511]
[1768985578251,12.78757618,2963.9,2963.2,12.43533511]
[1768985578549,0.04217558,2963.8,2963.2,12.43533511]
[1768985578731,12.82975176,2963.8,2963.2,12.43533511]
[1768985579050,12.78757618,2963.8,2963.2,12.43533511]
[1768985579926,14.0664338,2963.9,2963.2,12.43533511]
[1768985580131,0.001,2964.0,2963.4,12.43333511]
[1768985581071,0.001,2964.0,2963.5,12.51837905]
[1768985584330,0.001,2963.8,2963.6,12.51837905]
[1768985584738,0.001,2964.0,2963.6,12.51837905]
[1768985584943,0.0008,2964.2,2963.8,12.51837905]
[1768985585147,12.20608333,2964.2,2963.8,12.51837905]
[1768985585347,12.20608333,2964.2,2963.7,14.10765257]
[1768985587438,12.20608333,2964.2,2963.7,17.48180075]
[1768985588542,12.20608333,2964.2,2963.7,14.10765257]
[1768985588873,12.20608333,2964.2,2963.8,1.41076526]
[1768985591462,12.20608333,2964.2,2963.7,12.51837905]
[1768985591982,12.20528333,2964.0,2963.4,12.51837905]
[1768985592174,12.20528333,2964.0,2963.3,12.51837905]
[1768985592849,12.20528333,2964.0,2963.3,15.89296419]
[1768985593064,12.20528333,2964.0,2963.4,1.58949642]
[1768985593270,12.20528333,2964.0,2963.4,12.51837905]
[1768985595894,12.20528333,2964.0,2963.6,0.002]
[1768985596287,12.20628333,2964.0,2963.6,0.002]
[1768985603269,12.89575876,2963.8,2963.6,0.002]
[1768985604907,12.89675876,2964.0,2963.6,11.9383307]
[1768985605067,12.89675876,2964.0,2963.6,0.002]
[1768985605972,14.18651464,2964.0,2963.6,0.002]
[1768985606698,14.18651464,2964.0,2963.4,0.002]
[1768985606999,12.89575876,2963.8,2963.4,0.002]
[1768985608900,12.89575876,2963.8,2963.5,0.002]
[1768985612110,14.18651464,2964.0,2963.5,11.9383307]
[1768985612914,12.89575876,2963.8,2963.5,0.002]
[1768985616806,12.89575876,2963.6,2963.5,0.002]
[1768985622229,12.89575876,2963.6,2963.4,0.002]
[1768985629047,12.95736361,2963.8,2963.4,0.002]
[1768985630818,12.95736361,2963.8,2963.4,12.51272251]
[1768985631458,12.95736361,2963.8,2963.4,0.002]
[1768985631653,1.43770151,2963.8,2963.4,12.51272251]
[1768985631835,0.001,2964.0,2963.4,12.51272251]
[1768985632021,0.001,2964.0,2963.6,0.002]
[1768985632341,12.95836361,2964.0,2963.6,12.51272251]
[1768985633849,12.95836361,2964.0,2963.6,0.002]
[1768985634365,14.25427997,2964.0,2963.6,0.002]
[1768985635419,14.25427997,2964.0,2963.6,12.51272251]
[1768985635420,1.29691636,2964.0,2963.6,12.51272251]
[1768985635725,0.001,2964.0,2963.6,12.51272251]
[1768985635923,12.95836361,2964.0,2963.6,12.51272251]
[1768985636725,12.95836361,2964.0,2963.6,0.002]
[1768985637051,0.001,2964.0,2963.6,12.51272251]
[1768985637654,12.95836361,2964.0,2963.6,12.51272251]
[1768985640633,12.95836361,2964.0,2963.6,0.002]
[1768985640826,14.25319997,2963.9,2963.6,0.002]
[1768985641337,12.14079748,2963.8,2963.6,0.002]
[1768985641546,12.0986219,2963.8,2963.6,0.002]
[1768985643955,12.0996219,2963.8,2963.6,0.002]
[1768985644160,0.001,2963.8,2963.6,12.47992873]
[1768985645239,0.001,2963.8,2963.6,0.002]
[1768985650865,12.0996219,2963.8,2963.6,0.002]
[1768985653967,0.001,2963.8,2963.6,0.002]
[1768985655073,0.001,2963.8,2963.6,12.47992873]
[1768985656142,0.001,2963.8,2963.6,0.002]
[1768985666197,0.001,2963.8,2963.6,12.88785071]
[1768985666499,0.001,2963.8,2963.6,0.002]
[1768985669002,0.001,2963.8,2963.6,12.88785071]
[1768985669301,0.001,2963.8,2963.4,0.002]
[1768985669302,14.03955358,2963.8,2963.4,0.002]
[1768985669617,12.76223053,2963.6,2963.4,0.002]
[1768985678407,0.001,2963.8,2963.4,12.88785071]
[1768985678609,12.76323053,2963.8,2963.4,12.88785071]
[1768985679511,12.76323053,2963.8,2963.6,0.002]
[1768985679679,14.03955358,2963.8,2963.6,0.002]
[1768985679879,1.27732305,2963.8,2963.6,0.002]
[1768985681187,14.03955358,2963.8,2963.6,0.002]
[1768985683006,12.76323053,2963.8,2963.6,0.002]
[1768985684209,0.001,2963.8,2963.6,0.002]
[1768985684386,0.001,2963.8,2963.6,12.88785071]
[1768985684708,0.001,2963.8,2963.6,0.002]
[1768985686580,12.77627441,2963.8,2963.6,0.002]
[1768985687119,12.77527441,2963.7,2963.4,0.002]
[1768985689325,14.05390185,2963.8,2963.4,0.002]
[1768985689819,12.77527441,2963.6,2963.4,0.002]
[1768985701837,11.99037686,2963.7,2963.4,0.002]
[1768985702611,1.27862744,2963.8,2963.6,0.002]
[1768985702808,1.32690043,2963.7,2963.6,12.72738964]
[1768985703009,0.001,2963.8,2963.6,0.002]
[1768985703214,11.99137686,2963.8,2963.6,0.002]
[1768985704135,11.99037686,2963.6,2963.2,0.002]
[1768985704316,12.03255671,2963.5,2963.2,0.002]
[1768985704507,11.99037686,2963.5,2963.2,0.002]
[1768985706440,0.001,2963.8,2963.2,0.002]
[1768985706598,11.99037686,2963.7,2963.2,0.002]
[1768985706803,0.51500714,2963.6,2963.2,0.002]
[1768985707004,12.505384,2963.6,2963.2,0.002]
[1768985711242,0.001,2963.8,2963.3,12.72538964]
[1768985712299,0.001,2963.8,2963.4,12.72538964]
[1768985712505,11.99037686,2964.1,2963.4,12.72538964]
[1768985714338,11.99037686,2964.1,2963.4,12.72738964]
[1768985715931,0.0008,2964.2,2963.4,12.72738964]
[1768985715932,12.56030947,2963.9,2963.4,0.002]
[1768985716241,12.56030947,2963.7,2963.4,0.002]
[1768985718422,12.56030947,2963.6,2963.4,0.002]
[1768985731462,12.56030947,2963.6,2963.2,0.002]
[1768985736065,4.92750172,2964.2,2963.2,12.23720134]
[1768985736243,12.74429028,2964.1,2963.2,0.002]
[1768985736446,12.70211897,2963.9,2963.2,0.002]
[1768985736646,12.70211897,2963.7,2963.2,0.002]
[1768985737973,12.70211897,2963.7,2963.2,12.23720134]
[1768985738573,12.70211897,2963.7,2963.4,0.002]
[1768985746577,12.70211897,2963.7,2963.2,0.002]
[1768985746749,12.74491341,2963.5,2963.2,0.002]
[1768985747774,12.74491341,2963.9,2963.3,12.2502291]
[1768985748347,0.04217558,2963.8,2963.2,12.2522291]
[1768985748550,12.74491341,2963.7,2963.2,12.2522291]
[1768985750184,12.74491341,2963.7,2963.4,0.002]
[1768985750378,1.27449134,2963.6,2963.4,0.002]
[1768985750549,0.001,2963.5,2963.4,0.002]
[1768985766130,12.3736112,2963.5,2963.2,0.002]
[1768985766399,12.3726112,2963.3,2963.1,0.002]
[1768985771391,12.3726112,2963.3,2963.0,0.002]
[1768985771597,0.04218412,2963.2,2963.0,0.002]
[1768985772104,12.41479532,2963.2,2962.8,0.002]
[1768985772283,12.3726112,2963.0,2962.8,0.002]